fUSD/lending_fUSD_20241104
["ID","MTS","AMOUNT","RATE_DAILY","PERIOD"]
[341281807,1730740285516,-500.0,0.00037534,2]
[341281808,1730740285525,-500.0,0.00037534,2]
[341281809,1730740285534,-1323.98,0.00037534,2]
[341281810,1730740285543,-3246.91,0.00037534,2]
[341281811,1730740285552,-500.0,0.00037534,2]
[341281812,1730740285561,-500.0,0.00037534,2]
[341281813,1730740285570,-794.28,0.00037534,2]
[341281814,1730740285579,-766.93,0.00037534,2]
[341281815,1730740285588,-583.15,0.00037534,2]
[341281816,1730740285597,-500.0,0.00037534,2]
[341281817,1730740285607,-167.0,0.00037554,2]
[341281818,1730740285616,-504.871948,0.000376,32]
[341281819,1730740285625,-152.0,0.0003763,3]
[341281820,1730740285634,-1493.51,0.00037671,120]
[341281821,1730740285643,-1731.28255447,0.00037676,15]
[341281822,1730740285652,-224.41851534,0.00037707,2]
[341281823,1730740285661,-500.0,0.00037707,2]
[341281824,1730740285671,-591.11,0.00037707,2]
[341281825,1730740285680,-500.0,0.00037707,2]
[341281826,1730740285689,-500.0,0.00037707,2]
[341281827,1730740285699,-368.60303102,0.00037707,2]
[341281828,1730740285708,-500.0,0.00037707,2]
[341281829,1730740285718,-500.0,0.00037707,2]
[341281830,1730740285727,-500.0,0.00037707,2]
[341281831,1730740285736,-500.0,0.00037707,2]
[341281832,1730740285745,-500.0,0.00037707,2]
[341281833,1730740285755,-500.0,0.00037707,2]
[341281834,1730740285764,-1598.16,0.00037707,2]
[341281835,1730740285773,-500.0,0.00037707,2]
[341281836,1730740285783,-740.06,0.00037707,2]
[341281837,1730740285791,-665.74,0.00037707,2]
[341281838,1730740285800,-500.0,0.00037707,2]
[341281839,1730740285810,-500.0,0.00037707,2]
[341281840,1730740285822,-500.0,0.00037707,2]
[341281841,1730740285831,-346.7,0.00037707,2]
[341281842,1730740285842,-280.87,0.00037707,2]
[341281843,1730740285851,-500.0,0.00037707,2]
[341281844,1730740285862,-500.0,0.00037806,2]
[341281845,1730740285873,-500.0,0.00037807,2]
[341281846,1730740285883,-159.51,0.00037807,2]
[341281847,1730740285893,-638.88,0.00037807,2]
[341281848,1730740285903,-500.0,0.00037807,2]
[341281849,1730740285913,-500.0,0.00037807,2]
[341281850,1730740285923,-742.97,0.00037807,2]
[341281851,1730740285932,-430.20154304,0.00037807,2]
[341281852,1730740285942,-588.02,0.00037807,2]
[341281853,1730740285952,-684.77,0.00037807,2]
[341281854,1730740285961,-5190.93,0.00037807,2]
[341281855,1730740285972,-1333.28,0.00037807,2]
[341281856,1730740285982,-512.5,0.00037807,2]
[341281857,1730740285991,-2148.52,0.00037807,2]
[341281858,1730740286001,-1134.55,0.00037807,2]
[341281859,1730740286011,-911.98,0.00037807,2]
[341281860,1730740286021,-415.10995163,0.00037807,2]
[341281861,1730740286031,-500.0,0.00037808,2]
[341281862,1730740286041,-500.0,0.00037808,2]
[341281863,1730740286051,-623.99,0.00037808,2]
[341281864,1730740286061,-1022.37,0.00037808,2]
[341281865,1730740286071,-185.989896,0.00037808,2]
[341281866,1730740286081,-500.0,0.00037808,2]
[341281867,1730740286091,-2165.69,0.00037808,2]
[341281868,1730740286100,-649.19,0.00037808,2]
[341281869,1730740286115,-583.25,0.00037808,2]
[341281870,1730740286124,-610.43,0.00037808,2]
[341281871,1730740286135,-626.62,0.00037808,2]
[341281872,1730740286144,-500.0,0.00037808,2]
[341281873,1730740286154,-973.83,0.00037808,2]
[341281874,1730740286163,-2718.58,0.00037808,2]
[341281875,1730740286173,-694.09,0.00037808,2]
[341281876,1730740286188,-962.3,0.00037808,2]
[341281877,1730740286198,-603.31,0.00037808,2]
[341281878,1730740286207,-1262.3,0.00037808,2]
[341281879,1730740286216,-500.0,0.00037808,2]
[341281880,1730740286226,-500.0,0.00037808,2]
[341281881,1730740286235,-1323.98,0.00037808,2]
[341281882,1730740286244,-3246.91,0.00037808,2]
[341281883,1730740286253,-500.0,0.00037808,2]
[341281884,1730740286262,-500.0,0.00037808,2]
[341281885,1730740286271,-176.042427,0.00037808,2]
[341281886,1730740286280,-794.28,0.00037808,2]
[341281887,1730740286289,-766.93,0.00037808,2]
[341281888,1730740286299,-583.15,0.00037808,2]
[341281889,1730740286308,-500.0,0.00037808,2]
[341281890,1730740286318,-154.97,0.00037808,2]
[341281891,1730740286327,-441.31,0.00037808,2]
[341281892,1730740286337,-500.0,0.00037981,2]
[341281893,1730740286346,-591.11,0.00037981,2]
[341281894,1730740286355,-500.0,0.00037981,2]
[341281895,1730740286364,-500.0,0.00037981,2]
[341281896,1730740286373,-500.0,0.00037981,2]
[341281897,1730740286383,-500.0,0.00037981,2]
[341281898,1730740286392,-500.0,0.00037981,2]
[341281899,1730740286401,-272.57657072,0.00037981,2]
[341281900,1730740286411,-500.0,0.00037981,2]
[341281901,1730740286420,-500.0,0.00037981,2]
[341281902,1730740286430,-1598.16,0.00037981,2]
[341281903,1730740286440,-500.0,0.00037981,2]
[341281904,1730740286449,-740.06,0.00037981,2]
[341281905,1730740286458,-665.74,0.00037981,2]
[341281906,1730740286468,-500.0,0.00037981,2]
[341281907,1730740286477,-500.0,0.00037981,2]
[341281908,1730740286487,-500.0,0.00037981,2]
[341281909,1730740286496,-500.0,0.00037981,2]
[341281910,1730740286505,-900.0,0.00038,39]
[341281911,1730740286514,-840.14,0.00038,14]
[341281912,1730740286523,-250.0,0.00038,30]
[341281913,1730740286532,-500.0,0.00038081,2]
[341281914,1730740286542,-159.51,0.00038081,2]
[341281915,1730740286551,-638.88,0.00038081,2]
[341281916,1730740286560,-500.0,0.00038081,2]
[341281917,1730740286569,-500.0,0.00038081,2]
[341281918,1730740286579,-742.97,0.00038081,2]
[341281919,1730740286622,-588.02,0.00038081,2]
[341281920,1730740286631,-684.77,0.00038081,2]
[341281921,1730740286640,-5190.93,0.00038081,2]
[341281922,1730740286649,-1333.28,0.00038081,2]
[341281923,1730740286658,-512.5,0.00038081,2]
[341281924,1730740286668,-2148.52,0.00038081,2]
[341281925,1730740286679,-1134.55,0.00038081,2]
[341281926,1730740286689,-911.98,0.00038081,2]
[341281927,1730740286698,-157.399859,0.00038081,7]
[341281928,1730740286707,-157.399859,0.00038081,7]
[341281929,1730740286716,-500.0,0.00038082,2]
[341281930,1730740286726,-500.0,0.00038082,2]
[341281931,1730740286735,-623.99,0.00038082,2]
[341281932,1730740286744,-1022.37,0.00038082,2]
[341281933,1730740286753,-156.482156,0.00038082,2]
[341281934,1730740286762,-500.0,0.00038082,2]
[341281935,1730740286771,-2165.69,0.00038082,2]
[341281936,1730740286780,-649.19,0.00038082,2]
[341281937,1730740286791,-583.25,0.00038082,2]
[341281938,1730740286801,-610.43,0.00038082,2]
[341281939,1730740286812,-626.62,0.00038082,2]
[341281940,1730740286824,-194.7505403,0.00038082,2]
[341281941,1730740286833,-973.83,0.00038082,2]
[341281942,1730740286845,-2718.58,0.00038082,2]
[341281943,1730740286854,-694.09,0.00038082,2]
[341281944,1730740286863,-962.3,0.00038082,2]
[341281945,1730740286872,-603.31,0.00038082,2]
[341281946,1730740286882,-1262.3,0.00038082,2]
[341281947,1730740286893,-500.0,0.00038082,2]
[341281948,1730740286905,-500.0,0.00038082,2]
[341281949,1730740286914,-1323.98,0.00038082,2]
[341281950,1730740286923,-3246.91,0.00038082,2]
[341281951,1730740286934,-500.0,0.00038082,2]
[341281952,1730740286944,-500.0,0.00038082,2]
[341281953,1730740286953,-794.28,0.00038082,2]
[341281954,1730740286962,-766.93,0.00038082,2]
[341281955,1730740286971,-583.15,0.00038082,2]
[341281956,1730740286980,-500.0,0.00038082,2]
[341281957,1730740286990,-150.83,0.000381,30]
[341281958,1730740286999,-500.0,0.00038255,2]
[341281959,1730740287008,-591.11,0.00038255,2]
[341281960,1730740287018,-500.0,0.00038255,2]
[341281961,1730740287028,-500.0,0.00038255,2]
[341281962,1730740287037,-223.78755098,0.00038255,2]
[341281963,1730740287047,-500.0,0.00038255,2]
[341281964,1730740287057,-500.0,0.00038255,2]
[341281965,1730740287068,-500.0,0.00038255,2]
[341281966,1730740287077,-500.0,0.00038255,2]
[341281967,1730740287086,-1598.16,0.00038255,2]
[341281968,1730740287096,-500.0,0.00038255,2]
[341281969,1730740287106,-740.06,0.00038255,2]
[341281970,1730740287118,-665.74,0.00038255,2]
[341281971,1730740287127,-500.0,0.00038255,2]
[341281972,1730740287136,-500.0,0.00038255,2]
[341281973,1730740287146,-500.0,0.00038255,2]
[341281974,1730740287155,-500.0,0.00038255,2]
[341281975,1730740287164,-151.0,0.00038255,7]
[341281976,1730740287174,-151.0,0.00038255,7]
[341281977,1730740287184,-151.0,0.00038255,7]
[341281978,1730740287195,-2390.82225,0.00038276,2]
[341281979,1730740287204,-275.8385,0.00038276,2]
[341281980,1730740287214,-365.58161102,0.00038355,2]
[341281981,1730740287223,-159.51,0.00038355,2]
[341281982,1730740287232,-638.88,0.00038355,2]
[341281983,1730740287241,-349.19015201,0.00038355,2]
[341281984,1730740287250,-500.0,0.00038355,2]
[341281985,1730740287260,-742.97,0.00038355,2]
[341281986,1730740287269,-588.02,0.00038355,2]
[341281987,1730740287279,-684.77,0.00038355,2]
[341281988,1730740287288,-5190.93,0.00038355,2]
[341281989,1730740287298,-1333.28,0.00038355,2]
[341281990,1730740287307,-512.5,0.00038355,2]
[341281991,1730740287316,-2148.52,0.00038355,2]
[341281992,1730740287326,-1134.55,0.00038355,2]
[341281993,1730740287335,-911.98,0.00038355,2]
[341281994,1730740287345,-333.26321628,0.00038356,2]
[341281995,1730740287355,-589.61349342,0.00038356,2]
[341281996,1730740287364,-623.99,0.00038356,2]
[341281997,1730740287373,-1022.37,0.00038356,2]
[341281998,1730740287382,-388.05322129,0.00038356,2]
[341281999,1730740287391,-1493.51,0.00038356,120]
[341282000,1730740287401,-2165.69,0.00038356,2]
[341282001,1730740287410,-649.19,0.00038356,2]
[341282002,1730740287419,-583.25,0.00038356,2]
[341282003,1730740287427,-610.43,0.00038356,2]
[341282004,1730740287439,-626.62,0.00038356,2]
[341282005,1730740287448,-500.0,0.00038356,2]
[341282006,1730740287456,-500.0,0.00038356,2]
[341282007,1730740287465,-500.0,0.00038356,2]
[341282008,1730740287474,-523.6,0.00038356,2]
[341282009,1730740287483,-2718.58,0.00038356,2]
[341282010,1730740287492,-973.83,0.00038356,2]
[341282011,1730740287501,-694.09,0.00038356,2]
[341282012,1730740287510,-962.3,0.00038356,2]
[341282013,1730740287519,-603.31,0.00038356,2]
[341282014,1730740287528,-1262.3,0.00038356,2]
[341282015,1730740287538,-446.12691241,0.00038356,2]
[341282016,1730740287547,-500.0,0.00038356,2]
[341282017,1730740287557,-1323.98,0.00038356,2]
[341282018,1730740287567,-3246.91,0.00038356,2]
[341282019,1730740287578,-524.57,0.00038356,2]
[341282020,1730740287588,-209.38417369,0.00038356,2]
[341282021,1730740287597,-794.28,0.00038356,2]
[341282022,1730740287608,-766.93,0.00038356,2]
[341282023,1730740287618,-583.15,0.00038356,2]
[341282024,1730740287627,-500.0,0.00038356,2]
[341282025,1730740287636,-268.0,0.00038405,5]
[341282026,1730740287645,-400.08,0.00038466,2]
[341282027,1730740287654,-500.0,0.00038529,2]
[341282028,1730740287665,-591.11,0.00038529,2]
[341282029,1730740287675,-500.0,0.00038529,2]
[341282030,1730740287686,-500.0,0.00038529,2]
[341282031,1730740287696,-500.0,0.00038529,2]
[341282032,1730740287705,-205.11347227,0.00038529,2]
[341282033,1730740287714,-500.0,0.00038529,2]
[341282034,1730740287723,-500.0,0.00038529,2]
[341282035,1730740287732,-1598.16,0.00038529,2]
[341282036,1730740287742,-617.76052,0.00038529,2]
[341282037,1730740287751,-740.06,0.00038529,2]
[341282038,1730740287763,-665.74,0.00038529,2]
[341282039,1730740287772,-500.0,0.00038529,2]
[341282040,1730740287781,-500.0,0.00038529,2]
[341282041,1730740287790,-500.0,0.00038529,2]
[341282042,1730740287799,-500.0,0.00038529,2]
[341282043,1730740287807,-151.0,0.00038529,14]
[341282044,1730740287820,-826.110308,0.00038529,14]
[341282045,1730740287829,-826.110308,0.00038529,14]
[341282046,1730740287839,-611.42,0.00038629,2]
[341282047,1730740287850,-159.51,0.00038629,2]
[341282048,1730740287860,-500.0,0.00038629,2]
[341282049,1730740287871,-638.88,0.00038629,2]
[341282050,1730740287881,-500.0,0.00038629,2]
[341282051,1730740287892,-742.97,0.00038629,2]
[341282052,1730740287903,-588.02,0.00038629,2]
[341282053,1730740287914,-684.77,0.00038629,2]
[341282054,1730740287925,-5190.93,0.00038629,2]
[341282055,1730740287935,-1333.28,0.00038629,2]
[341282056,1730740287945,-512.5,0.00038629,2]
[341282057,1730740287954,-2148.52,0.00038629,2]
[341282058,1730740287963,-1134.55,0.00038629,2]
[341282059,1730740287972,-911.98,0.00038629,2]
[341282060,1730740287981,-623.99,0.0003863,2]
[341282061,1730740287991,-151.0,0.0003863,14]
[341282062,1730740288000,-205.343421,0.0003863,14]
[341282063,1730740288009,-1022.37,0.0003863,2]
[341282064,1730740288018,-156.482156,0.0003863,2]
[341282065,1730740288027,-2165.69,0.0003863,2]
[341282066,1730740288036,-649.19,0.0003863,2]
[341282067,1730740288045,-583.25,0.0003863,2]
[341282068,1730740288054,-610.43,0.0003863,2]
[341282069,1730740288065,-626.62,0.0003863,2]
[341282070,1730740288074,-2718.58,0.0003863,2]
[341282071,1730740288083,-973.83,0.0003863,2]
[341282072,1730740288092,-694.09,0.0003863,2]
[341282073,1730740288101,-962.3,0.0003863,2]
[341282074,1730740288115,-603.31,0.0003863,2]
[341282075,1730740288124,-1262.3,0.0003863,2]
[341282076,1730740288134,-160.00349888,0.0003863,2]
[341282077,1730740288143,-1323.98,0.0003863,2]
[341282078,1730740288153,-3246.91,0.0003863,2]
[341282079,1730740288162,-794.28,0.0003863,2]
[341282080,1730740288171,-766.93,0.0003863,2]
[341282081,1730740288183,-583.15,0.0003863,2]
[341282082,1730740288199,-500.0,0.0003863,2]
[341282083,1730740288209,-444.28,0.0003863,2]
[341282084,1730740288219,-154.6,0.0003863,2]
[341282085,1730740288228,-192.35,0.0003863,2]
[341282086,1730740288237,-722.8,0.0003863,2]
[341282087,1730740288246,-150.0,0.00038651,2]
[341282088,1730740288255,-150.0,0.00038748,2]
[341282089,1730740288264,-427.12,0.00038767,2]
[341282090,1730740288274,-427.12,0.00038767,2]
[341282091,1730740288284,-427.12,0.00038767,2]
[341282092,1730740288293,-427.12,0.00038767,2]
[341282093,1730740288302,-150.0,0.00038769,2]
[341282094,1730740288311,-500.0,0.00038802,2]
[341282095,1730740288320,-500.0,0.00038802,2]
[341282096,1730740288329,-500.0,0.00038803,2]
[341282097,1730740288339,-591.11,0.00038803,2]
[341282098,1730740288349,-500.0,0.00038803,2]
[341282099,1730740288358,-161.9734885,0.00038803,2]
[341282100,1730740288367,-500.0,0.00038803,2]
[341282101,1730740288376,-500.0,0.00038803,2]
[341282102,1730740288385,-500.0,0.00038803,2]
[341282103,1730740288394,-1598.16,0.00038803,2]
[341282104,1730740288403,-740.06,0.00038803,2]
[341282105,1730740288412,-665.74,0.00038803,2]
[341282106,1730740288421,-500.0,0.00038803,2]
[341282107,1730740288430,-500.0,0.00038803,2]
[341282108,1730740288440,-500.0,0.00038803,2]
[341282109,1730740288449,-276.2,0.00038803,2]
[341282110,1730740288458,-150.0,0.0003885,2]
[341282111,1730740288467,-150.0,0.00038867,2]
[341282112,1730740288477,-150.0,0.00038871,2]
[341282113,1730740288487,-1731.28255447,0.00038902,15]
[341282114,1730740288495,-151.0,0.00038903,14]
[341282115,1730740288505,-213.159153,0.00038903,14]
[341282116,1730740288514,-159.51,0.00038903,2]
[341282117,1730740288523,-638.88,0.00038903,2]
[341282118,1730740288532,-406.92165246,0.00038903,2]
[341282119,1730740288541,-742.97,0.00038903,2]
[341282120,1730740288550,-588.02,0.00038903,2]
[341282121,1730740288559,-684.77,0.00038903,2]
[341282122,1730740288567,-151.0,0.00038903,7]
[341282123,1730740288576,-5190.93,0.00038903,2]
[341282124,1730740288585,-1333.28,0.00038903,2]
[341282125,1730740288595,-512.5,0.00038903,2]
[341282126,1730740288604,-2148.52,0.00038903,2]
[341282127,1730740288614,-1134.55,0.00038903,2]
[341282128,1730740288624,-911.98,0.00038903,2]
[341282129,1730740288634,-623.99,0.00038904,2]
[341282130,1730740288644,-1022.37,0.00038904,2]
[341282131,1730740288655,-2165.69,0.00038904,2]
[341282132,1730740288665,-649.19,0.00038904,2]
[341282133,1730740288674,-583.25,0.00038904,2]
[341282134,1730740288685,-610.43,0.00038904,2]
[341282135,1730740288694,-626.62,0.00038904,2]
[341282136,1730740288703,-2718.58,0.00038904,2]
[341282137,1730740288711,-973.83,0.00038904,2]
[341282138,1730740288720,-694.09,0.00038904,2]
[341282139,1730740288730,-962.3,0.00038904,2]
[341282140,1730740288739,-603.31,0.00038904,2]
[341282141,1730740288749,-1262.3,0.00038904,2]
[341282142,1730740288758,-1323.98,0.00038904,2]
[341282143,1730740288767,-3246.91,0.00038904,2]
[341282144,1730740288777,-794.28,0.00038904,2]
[341282145,1730740288786,-766.93,0.00038904,2]
[341282146,1730740288795,-583.15,0.00038904,2]
[341282147,1730740288804,-247.98282129,0.00038904,2]
[341282148,1730740288813,-150.0,0.00038913,2]
[341282149,1730740288823,-150.0,0.00038925,2]
[341282150,1730740288832,-150.0,0.00038934,2]
[341282151,1730740288841,-150.0,0.00038937,2]
[341282152,1730740288850,-1000.0,0.00038953,2]
[341282153,1730740288860,-900.0,0.00039,40]
[341282154,1730740288869,-840.14,0.00039,14]
[341282155,1730740288878,-1493.51,0.00039041,120]
[341282156,1730740288887,-500.0,0.00039076,2]
[341282157,1730740288896,-500.0,0.00039077,2]
[341282158,1730740288905,-591.11,0.00039077,2]
[341282159,1730740288915,-500.0,0.00039077,2]
[341282160,1730740288925,-233.34709036,0.00039077,2]
[341282161,1730740288938,-295.050275,0.00039077,14]
[341282162,1730740288947,-558.93643095,0.00039077,2]
[341282163,1730740288957,-435.95205158,0.00039077,2]
[341282164,1730740288966,-151.0,0.00039077,14]
[341282165,1730740288976,-1598.16,0.00039077,2]
[341282166,1730740288986,-740.06,0.00039077,2]
[341282167,1730740288996,-665.74,0.00039077,2]
[341282168,1730740289007,-500.0,0.00039077,2]
[341282169,1730740289017,-500.0,0.00039077,2]
[341282170,1730740289027,-500.0,0.00039077,2]
[341282171,1730740289036,-150.0,0.00039087,2]
[341282172,1730740289047,-161.80528,0.00039088,7]
[341282173,1730740289057,-398.0,0.000391,25]
[341282174,1730740289067,-196.0,0.000391,25]
[341282175,1730740289079,-150.0,0.00039162,2]
[341282176,1730740289089,-1381.8730783,0.00039167,2]
[341282177,1730740289098,-3585.9895201,0.00039167,2]
[341282178,1730740289112,-613.84982641,0.00039177,2]
[341282179,1730740289122,-159.51,0.00039177,2]
[341282180,1730740289131,-638.88,0.00039177,2]
[341282181,1730740289141,-742.97,0.00039177,2]
[341282182,1730740289151,-588.02,0.00039177,2]
[341282183,1730740289160,-684.77,0.00039177,2]
[341282184,1730740289170,-5190.93,0.00039177,2]
[341282185,1730740289179,-1333.28,0.00039177,2]
[341282186,1730740289193,-512.5,0.00039177,2]
[341282187,1730740289202,-2148.52,0.00039177,2]
[341282188,1730740289211,-1134.55,0.00039177,2]
[341282189,1730740289221,-911.98,0.00039177,2]
[341282190,1730740289231,-624.09030163,0.00039178,2]
[341282191,1730740289241,-1022.5476663,0.00039178,2]
[341282192,1730740289250,-2165.7486,0.00039178,2]
[341282193,1730740289260,-649.37925992,0.00039178,2]
[341282194,1730740289269,-583.29629673,0.00039178,2]
[341282195,1730740289279,-610.50430597,0.00039178,2]
[341282196,1730740289289,-626.64164379,0.00039178,2]
[341282197,1730740289299,-2718.77494615,0.00039178,2]
[341282198,1730740289309,-974.04,0.00039178,2]
[341282199,1730740289318,-694.10490784,0.00039178,2]
[341282200,1730740289328,-962.42751535,0.00039178,2]
[341282201,1730740289338,-603.52057459,0.00039178,2]
[341282202,1730740289348,-1262.50804577,0.00039178,2]
[341282203,1730740289358,-1324.13298766,0.00039178,2]
[341282204,1730740289367,-3246.9617708,0.00039178,2]
[341282205,1730740289377,-794.29716505,0.00039178,2]
[341282206,1730740289386,-767.08,0.00039178,2]
[341282207,1730740289395,-583.37,0.00039178,2]
[341282208,1730740289405,-150.0,0.00039188,2]
[341282209,1730740289414,-150.0,0.00039194,2]
[341282210,1730740289424,-150.0,0.00039229,2]
[341282211,1730740289434,-150.0,0.00039245,2]
[341282212,1730740289446,-150.0,0.0003927,2]
[341282213,1730740289455,-177.37,0.00039273,120]
[341282214,1730740289465,-161.80528,0.00039288,7]
[341282215,1730740289474,-150.0,0.0003932,2]
[341282216,1730740289484,-150.0,0.00039325,2]
[341282217,1730740289494,-150.0,0.00039339,2]
[341282218,1730740289503,-166.91,0.00039346,2]
[341282219,1730740289513,-500.0,0.00039351,2]
[341282220,1730740289523,-591.11,0.00039351,2]
[341282221,1730740289533,-500.0,0.00039351,2]
[341282222,1730740289543,-1598.16,0.00039351,2]
[341282223,1730740289553,-740.06,0.00039351,2]
[341282224,1730740289563,-665.74,0.00039351,2]
[341282225,1730740289572,-500.0,0.00039351,2]
[341282226,1730740289582,-500.0,0.00039351,2]
[341282227,1730740289592,-426.56690746,0.00039351,2]
[341282228,1730740289602,-150.0,0.00039352,2]
[341282229,1730740289612,-150.0,0.0003938,2]
[341282230,1730740289623,-150.0,0.00039385,2]
[341282231,1730740289632,-150.0,0.00039438,2]
[341282232,1730740289642,-1263.37189023,0.00039451,30]
[341282233,1730740289652,-159.53202252,0.00039451,2]
[341282234,1730740289665,-638.96,0.00039451,2]
[341282235,1730740289675,-742.97,0.00039451,2]
[341282236,1730740289685,-588.07620717,0.00039451,2]
[341282237,1730740289695,-684.78819879,0.00039451,2]
[341282238,1730740289705,-5191.1309216,0.00039451,2]
[341282239,1730740289714,-1333.4986711,0.00039451,2]
[341282240,1730740289724,-512.54990538,0.00039451,2]
[341282241,1730740289734,-2148.58654158,0.00039451,2]
[341282242,1730740289743,-1134.70111018,0.00039451,2]
[341282243,1730740289753,-911.98943802,0.00039451,2]
[341282244,1730740289762,-161.80528,0.00039488,7]
[341282245,1730740289772,-150.0,0.00039565,2]
[341282246,1730740289781,-150.0,0.00039567,2]
[341282247,1730740289791,-150.0,0.00039568,2]
[341282248,1730740289801,-150.0,0.00039597,2]
[341282249,1730740289811,-291.79796933,0.00039625,2]
[341282250,1730740289821,-591.11,0.00039625,2]
[341282251,1730740289831,-311.8310036,0.00039625,2]
[341282252,1730740289841,-1598.16,0.00039625,2]
[341282253,1730740289851,-740.06,0.00039625,2]
[341282254,1730740289861,-665.74,0.00039625,2]
[341282255,1730740289870,-500.0,0.00039625,2]
[341282256,1730740289880,-500.0,0.00039625,2]
[341282257,1730740289890,-150.0,0.00039655,2]
[341282258,1730740289899,-150.0,0.00039659,2]
[341282259,1730740289909,-161.80528,0.00039688,7]
[341282260,1730740289918,-150.0,0.0003969,2]
[341282261,1730740289928,-150.0,0.00039712,2]
[341282262,1730740289938,-611.42,0.00039725,2]
[341282263,1730740289948,-500.0,0.00039725,2]
[341282264,1730740289958,-151.0,0.00039725,14]
[341282265,1730740289968,-742.97,0.00039725,2]
[341282266,1730740289978,-1493.51,0.00039726,120]
[341282267,1730740289988,-150.0,0.00039737,2]
[341282268,1730740289998,-150.0,0.00039766,2]
[341282269,1730740290008,-518.58527194,0.00039766,10]
[341282270,1730740290018,-515.96258206,0.00039766,10]
[341282271,1730740290027,-500.0,0.00039766,10]
[341282272,1730740290037,-514.87617744,0.00039766,10]
[341282273,1730740290048,-500.0,0.00039766,10]
[341282274,1730740290058,-771.28058649,0.00039766,10]
[341282275,1730740290068,-150.0,0.00039797,2]
[341282276,1730740290078,-150.0,0.00039822,2]
[341282277,1730740290088,-150.0,0.00039839,2]
[341282278,1730740290100,-660.74036737,0.00039866,10]
[341282279,1730740290113,-500.0,0.00039866,10]
[341282280,1730740290123,-347.84212938,0.00039866,10]
[341282281,1730740290133,-150.0,0.00039869,2]
[341282282,1730740290143,-5090.13122732,0.00039883,2]
[341282283,1730740290153,-591.11,0.00039899,2]
[341282284,1730740290163,-1598.16,0.00039899,2]
[341282285,1730740290173,-740.06,0.00039899,2]
[341282286,1730740290184,-665.74,0.00039899,2]
[341282287,1730740290195,-500.0,0.00039899,2]
[341282288,1730740290205,-500.0,0.00039899,2]
[341282289,1730740290215,-840.14,0.000399,14]
[341282290,1730740290224,-150.0,0.0003991,2]
[341282291,1730740290234,-150.0,0.0003992,2]
[341282292,1730740290244,-6262.36272831,0.00039933,2]
[341282293,1730740290254,-152.0,0.0003994,4]
[341282294,1730740290264,-150.0,0.00039957,2]
[341282295,1730740290274,-150.0,0.0003996,2]
[341282296,1730740290283,-150.0,0.00039978,2]
[341282297,1730740290293,-150.0,0.00039983,2]
[341282298,1730740290302,-150.0,0.00039988,2]
[341282299,1730740290311,-150.0,0.00039997,2]
[341282300,1730740290321,-742.97,0.00039999,2]
[341282301,1730740290332,-900.0,0.0004,41]
[341282302,1730740290343,-250.0,0.0004,30]
[341282303,1730740290352,-200.0,0.0004,120]
[341282304,1730740290363,-179.43599315,0.0004002,8]
[341282305,1730740290373,-150.0,0.00040043,2]
[341282306,1730740290383,-161.80528,0.00040088,7]